fUST/lending_fUST_20250623
["ID","MTS","AMOUNT","RATE_DAILY","PERIOD"]
[367151698,1750674634576,-460.0,0.00021917,2]
[367151699,1750674634585,-737.81,0.00021917,2]
[367151700,1750674634595,-460.0,0.00021917,2]
[367151701,1750674634605,-460.0,0.00021917,2]
[367151702,1750674634614,-464.53,0.00021917,2]
[367151703,1750674634624,-842.04,0.00021917,2]
[367151704,1750674634633,-460.0,0.00021917,2]
[367151705,1750674634643,-518.7412417,0.00021917,2]
[367151706,1750674634653,-957.73,0.00021917,2]
[367151707,1750674634662,-422.79946169,0.00021917,2]
[367151708,1750674634671,-460.2241421,0.00021917,2]
[367151709,1750674634681,-460.0,0.00021917,2]
[367151710,1750674634690,-460.0,0.00021917,2]
[367151711,1750674634700,-406.24430098,0.00021917,2]
[367151712,1750674634709,-572.57179302,0.00021917,2]
[367151713,1750674634719,-460.0,0.00021917,2]
[367151714,1750674634727,-460.0,0.00021917,2]
[367151715,1750674634737,-850.1,0.00021917,2]
[367151716,1750674634746,-460.0,0.00021917,2]
[367151717,1750674634755,-694.0,0.00021917,2]
[367151718,1750674634764,-460.0,0.00021917,2]
[367151719,1750674634773,-940.7,0.00021917,2]
[367151720,1750674634782,-460.0,0.00021917,2]
[367151721,1750674634791,-1170.99,0.00021917,2]
[367151722,1750674634801,-460.0,0.00021917,2]
[367151723,1750674634811,-460.0,0.00021917,2]
[367151724,1750674634820,-460.0,0.00021917,2]
[367151725,1750674634829,-916.56,0.00021917,2]
[367151726,1750674634839,-460.0,0.00021917,2]
[367151727,1750674634848,-460.0,0.00021917,2]
[367151728,1750674634857,-460.0,0.00021917,2]
[367151729,1750674634875,-542.72,0.00021917,2]
[367151730,1750674634886,-460.0,0.00021917,2]
[367151731,1750674634896,-460.0,0.00021917,2]
[367151732,1750674634906,-460.0,0.00021917,2]
[367151733,1750674634915,-547.27,0.00021917,2]
[367151734,1750674634925,-460.0,0.00021917,2]
[367151735,1750674634934,-460.0,0.00021917,2]
[367151736,1750674634943,-432.33609302,0.00021917,2]
[367151737,1750674634953,-460.0,0.00021917,2]
[367151738,1750674634962,-460.0,0.00021917,2]
[367151739,1750674634971,-460.0,0.00021917,2]
[367151740,1750674634980,-1007.95,0.00021917,2]
[367151741,1750674634989,-460.0,0.00021917,2]
[367151742,1750674634999,-460.0,0.00021917,2]
[367151743,1750674635008,-600.77,0.00021917,2]
[367151744,1750674635018,-460.0,0.00021917,2]
[367151745,1750674635027,-660.39,0.00021917,2]
[367151746,1750674635037,-460.0,0.00021917,2]
[367151747,1750674635046,-500.0,0.00021917,2]
[367151748,1750674635056,-460.0,0.00021917,2]
[367151749,1750674635065,-460.0,0.00021917,2]
[367151750,1750674635074,-460.0,0.00021917,2]
[367151751,1750674635083,-460.0,0.00021917,2]
[367151752,1750674635093,-460.0,0.00021917,2]
[367151753,1750674635102,-460.0,0.00021917,2]
[367151754,1750674635111,-572.08,0.00021917,2]
[367151755,1750674635121,-460.0,0.00021917,2]
[367151756,1750674635130,-506.19,0.00021917,2]
[367151757,1750674635140,-458.86380977,0.00021917,2]
[367151758,1750674635150,-489.21579116,0.00021917,2]
[367151759,1750674635159,-460.0,0.00021917,2]
[367151760,1750674635169,-460.0,0.00021917,2]
[367151761,1750674635178,-460.0,0.00021917,2]
[367151762,1750674635187,-500.63,0.00021917,2]
[367151763,1750674635197,-460.0,0.00021917,2]
[367151764,1750674635206,-460.0,0.00021917,2]
[367151765,1750674635215,-460.0,0.00021917,2]
[367151766,1750674635225,-1125.04,0.00021917,2]
[367151767,1750674635234,-460.0,0.00021917,2]
[367151768,1750674635243,-460.0,0.00021917,2]
[367151769,1750674635252,-460.0,0.00021917,2]
[367151770,1750674635262,-460.0,0.00021917,2]
[367151771,1750674635271,-460.0,0.00021917,2]
[367151772,1750674635280,-460.0,0.00021917,2]
[367151773,1750674635290,-460.0,0.00021917,2]
[367151774,1750674635299,-507.26,0.00021917,2]
[367151775,1750674635308,-460.0,0.00021917,2]
[367151776,1750674635317,-460.0,0.00021917,2]
[367151777,1750674635326,-460.0,0.00021917,2]
[367151778,1750674635336,-460.0,0.00021917,2]
[367151779,1750674635345,-460.0,0.00021917,2]
[367151780,1750674635354,-460.0,0.00021917,2]
[367151781,1750674635363,-2546.55,0.00021917,2]
[367151782,1750674635373,-460.0,0.00021917,2]
[367151783,1750674635382,-460.0,0.00021917,2]
[367151784,1750674635392,-460.0,0.00021917,2]
[367151785,1750674635401,-460.0,0.00021917,2]
[367151786,1750674635668,-460.0,0.00021917,2]
[367151787,1750674635678,-670.38,0.00021917,2]
[367151788,1750674635688,-460.0,0.00021917,2]
[367151789,1750674635698,-460.0,0.00021917,2]
[367151790,1750674635707,-460.0,0.00021917,2]
[367151791,1750674635718,-460.0,0.00021917,2]
[367151792,1750674635732,-460.0,0.00021917,2]
[367151793,1750674635741,-460.0,0.00021917,2]
[367151794,1750674635751,-460.0,0.00021917,2]
[367151795,1750674635760,-460.0,0.00021917,2]
[367151796,1750674635770,-575.69,0.00021917,2]
[367151797,1750674635779,-460.14,0.00021917,2]
[367151798,1750674635789,-460.0,0.00021917,2]
[367151799,1750674635798,-460.0,0.00021917,2]
[367151800,1750674635808,-613.79,0.00021917,2]
[367151801,1750674635817,-460.0,0.00021917,2]
[367151802,1750674635827,-460.0,0.00021917,2]
[367151803,1750674635836,-526.62,0.00021917,2]
[367151804,1750674635845,-3356.85,0.00021917,2]
[367151805,1750674635854,-460.0,0.00021917,2]
[367151806,1750674635863,-460.0,0.00021917,2]
[367151807,1750674635872,-460.0,0.00021917,2]
[367151808,1750674635881,-460.0,0.00021917,2]
[367151809,1750674635890,-405.10947475,0.00021917,2]
[367151810,1750674635899,-460.0,0.00021917,2]
[367151811,1750674635909,-460.0,0.00021917,2]
[367151812,1750674635918,-460.0,0.00021917,2]
[367151813,1750674635927,-523.41,0.00021917,2]
[367151814,1750674635936,-460.0,0.00021917,2]
[367151815,1750674635945,-1216.01,0.00021917,2]
[367151816,1750674635954,-460.0,0.00021917,2]
[367151817,1750674635963,-460.0,0.00021917,2]
[367151818,1750674635972,-457.63209664,0.00021917,2]
[367151819,1750674635981,-460.0,0.00021917,2]
[367151820,1750674635991,-1429.18,0.00021917,2]
[367151821,1750674636000,-460.0,0.00021917,2]
[367151822,1750674636010,-460.0,0.00021917,2]
[367151823,1750674636020,-561.75,0.00021917,2]
[367151824,1750674636029,-460.0,0.00021917,2]
[367151825,1750674636039,-460.0,0.00021917,2]
[367151826,1750674636049,-460.0,0.00021917,2]
[367151827,1750674636059,-460.0,0.00021917,2]
[367151828,1750674636069,-460.0,0.00021917,2]
[367151829,1750674636078,-430.0,0.00021917,2]
[367151830,1750674636087,-460.0,0.00021917,2]
[367151831,1750674636096,-1043.35,0.00021917,2]
[367151832,1750674636106,-460.0,0.00021917,2]
[367151833,1750674636115,-543.33112431,0.00021917,2]
[367151834,1750674636125,-300.0,0.00021917,2]
[367151835,1750674636136,-460.0,0.00021917,2]
[367151836,1750674636146,-460.0,0.00021917,2]
[367151837,1750674636155,-460.0,0.00021917,2]
[367151838,1750674636164,-460.0,0.00021917,2]
[367151839,1750674636174,-493.73,0.00021917,2]
[367151840,1750674636183,-460.0,0.00021917,2]
[367151841,1750674636193,-460.0,0.00021917,2]
[367151842,1750674636202,-649.32,0.00021917,2]
[367151843,1750674636212,-460.0,0.00021917,2]
[367151844,1750674636222,-460.0,0.00021917,2]
[367151845,1750674636231,-460.0,0.00021917,2]
[367151846,1750674636240,-460.0,0.00021917,2]
[367151847,1750674636251,-460.0,0.00021917,2]
[367151848,1750674636260,-460.0,0.00021917,2]
[367151849,1750674636269,-460.0,0.00021917,2]
[367151850,1750674636279,-743.96,0.00021917,2]
[367151851,1750674636288,-460.0,0.00021917,2]
[367151852,1750674636297,-353.49443933,0.00021917,2]
[367151853,1750674636306,-460.0,0.00021917,2]
[367151854,1750674636316,-460.0,0.00021917,2]
[367151855,1750674636325,-1090.14,0.00021917,2]
[367151856,1750674636334,-460.0,0.00021917,2]
[367151857,1750674636344,-460.0,0.00021917,2]
[367151858,1750674636353,-460.0,0.00021917,2]
[367151859,1750674636362,-460.0,0.00021917,2]
[367151860,1750674636371,-460.0,0.00021917,2]
[367151861,1750674636380,-1051.9,0.00021917,2]
[367151862,1750674636390,-802.63,0.00021917,2]
[367151863,1750674636401,-500.0,0.00021917,2]
[367151864,1750674636410,-506.53,0.00021917,2]
[367151865,1750674636419,-450.0,0.00021917,2]
[367151866,1750674636429,-460.0,0.00021917,2]
[367151867,1750674636438,-460.0,0.00021917,2]
[367151868,1750674636448,-460.0,0.00021917,2]
[367151869,1750674636457,-663.15,0.00021917,2]
[367151870,1750674636466,-796.53,0.00021917,2]
[367151871,1750674636476,-460.0,0.00021917,2]
[367151872,1750674636485,-460.0,0.00021917,2]
[367151873,1750674636494,-460.0,0.00021917,2]
[367151874,1750674636503,-460.0,0.00021917,2]
[367151875,1750674636513,-631.07,0.00021917,2]
[367151876,1750674636526,-460.0,0.00021917,2]
[367151877,1750674636535,-609.7,0.00021917,2]
[367151878,1750674636544,-599.97,0.00021917,2]
[367151879,1750674636554,-460.0,0.00021917,2]
[367151880,1750674636565,-1661.44,0.00021917,2]
[367151881,1750674636574,-460.0,0.00021917,2]
[367151882,1750674636583,-460.0,0.00021917,2]
[367151883,1750674636593,-460.0,0.00021917,2]
[367151884,1750674636602,-460.0,0.00021917,2]
[367151885,1750674636611,-565.36,0.00021917,2]
[367151886,1750674636621,-460.0,0.00021917,2]
[367151887,1750674636630,-500.0,0.00021917,2]
[367151888,1750674636640,-643.18,0.00021917,2]
[367151889,1750674636649,-460.0,0.00021917,2]
[367151890,1750674636659,-460.0,0.00021917,2]
[367151891,1750674636668,-748.92,0.00021917,2]
[367151892,1750674636678,-460.0,0.00021917,2]
[367151893,1750674636687,-460.0,0.00021917,2]
[367151894,1750674636697,-460.0,0.00021917,2]
[367151895,1750674636706,-930.98,0.00021917,2]
[367151896,1750674636716,-460.0,0.00021917,2]
[367151897,1750674636726,-602.35,0.00021917,2]
[367151898,1750674636736,-460.0,0.00021917,2]
[367151899,1750674636745,-460.0,0.00021917,2]
[367151900,1750674636754,-809.31,0.00021917,2]
[367151901,1750674636764,-460.0,0.00021917,2]
[367151902,1750674636773,-460.0,0.00021917,2]
[367151903,1750674636782,-460.0,0.00021917,2]
[367151904,1750674636792,-460.0,0.00021917,2]
[367151905,1750674636802,-905.28,0.00021917,2]
[367151906,1750674636811,-460.0,0.00021917,2]
[367151907,1750674636820,-413.42126971,0.00021917,2]
[367151908,1750674636830,-460.0,0.00021917,2]
[367151909,1750674636839,-901.19,0.00021917,2]
[367151910,1750674636849,-460.0,0.00021917,2]
[367151911,1750674636858,-460.0,0.00021917,2]
[367151912,1750674636867,-1064.29,0.00021917,2]
[367151913,1750674636877,-460.0,0.00021917,2]
[367151914,1750674636887,-460.0,0.00021917,2]
[367151915,1750674636897,-460.0,0.00021917,2]
[367151916,1750674636907,-500.0,0.00021917,2]
[367151917,1750674636917,-1323.26,0.00021917,2]
[367151918,1750674636927,-460.0,0.00021917,2]
[367151919,1750674636937,-460.0,0.00021917,2]
[367151920,1750674636947,-500.0,0.00021917,2]
[367151921,1750674636957,-460.0,0.00021917,2]
[367151922,1750674636966,-460.0,0.00021917,2]
[367151923,1750674636976,-4626.05,0.00021917,2]
[367151924,1750674636986,-460.0,0.00021917,2]
[367151925,1750674636996,-460.0,0.00021917,2]
[367151926,1750674637005,-460.0,0.00021917,2]
[367151927,1750674637015,-491.31,0.00021917,2]
[367151928,1750674637024,-1669.41,0.00021917,2]
[367151929,1750674637034,-460.0,0.00021917,2]
[367151930,1750674637043,-460.0,0.00021917,2]
[367151931,1750674637052,-460.0,0.00021917,2]
[367151932,1750674637061,-460.0,0.00021917,2]
[367151933,1750674637071,-460.0,0.00021917,2]
[367151934,1750674637081,-460.0,0.00021917,2]
[367151935,1750674637091,-460.0,0.00021917,2]
[367151936,1750674637100,-1440.8,0.00021917,2]
[367151937,1750674637110,-460.0,0.00021917,2]
[367151938,1750674637120,-460.0,0.00021917,2]
[367151939,1750674637130,-460.0,0.00021917,2]
[367151940,1750674637140,-478.97,0.00021917,2]
[367151941,1750674637149,-460.0,0.00021917,2]
[367151942,1750674637159,-460.0,0.00021917,2]
[367151943,1750674637168,-654.2,0.00021917,2]
[367151944,1750674637178,-623.95,0.00021917,2]
[367151945,1750674637188,-1878.02,0.00021917,2]
[367151946,1750674637197,-460.0,0.00021917,2]
[367151947,1750674637207,-460.0,0.00021917,2]
[367151948,1750674637216,-735.11,0.00021917,2]
[367151949,1750674637226,-460.0,0.00021917,2]
[367151950,1750674637236,-460.0,0.00021917,2]
[367151951,1750674637246,-460.0,0.00021917,2]
[367151952,1750674637255,-460.0,0.00021917,2]
[367151953,1750674637265,-678.35,0.00021917,2]
[367151954,1750674637274,-460.0,0.00021917,2]
[367151955,1750674637284,-460.0,0.00021917,2]
[367151956,1750674637294,-1112.98,0.00021917,2]
[367151957,1750674637304,-460.0,0.00021917,2]
[367151958,1750674637313,-694.31,0.00021917,2]
[367151959,1750674637323,-1332.09,0.00021917,2]
[367151960,1750674637332,-718.66,0.00021917,2]
[367151961,1750674637342,-460.0,0.00021917,2]
[367151962,1750674637351,-460.0,0.00021917,2]
[367151963,1750674637361,-7001.87,0.00021917,2]
[367151964,1750674637370,-963.38,0.00021917,2]
[367151965,1750674637380,-460.0,0.00021917,2]
[367151966,1750674637390,-588.57573045,0.00021917,2]
[367151967,1750674637399,-956.27,0.00021917,2]
[367151968,1750674637408,-460.0,0.00021917,2]
[367151969,1750674637417,-460.0,0.00021917,2]
[367151970,1750674637427,-460.0,0.00021917,2]
[367151971,1750674637436,-460.0,0.00021917,2]
[367151972,1750674637446,-460.0,0.00021917,2]
[367151973,1750674637455,-460.0,0.00021917,2]
[367151974,1750674637465,-460.0,0.00021917,2]
[367151975,1750674637475,-487.28631749,0.00021917,2]
[367151976,1750674637484,-460.0,0.00021917,2]
[367151977,1750674637495,-460.0,0.00021917,2]
[367151978,1750674637505,-460.0,0.00021917,2]
[367151979,1750674637517,-460.0,0.00021917,2]
[367151980,1750674637527,-477.57,0.00021917,2]
[367151981,1750674637536,-460.0,0.00021917,2]
[367151982,1750674637546,-2036.06,0.00021917,2]
[367151983,1750674637556,-460.0,0.00021917,2]
[367151984,1750674637566,-460.0,0.00021917,2]
[367151985,1750674637575,-460.0,0.00021917,2]
[367151986,1750674637585,-460.0,0.00021917,2]
[367151987,1750674637596,-460.0,0.00021917,2]
[367151988,1750674637605,-460.0,0.00021917,2]
[367151989,1750674637615,-1448.94,0.00021917,2]
[367151990,1750674637625,-460.0,0.00021917,2]
[367151991,1750674637634,-460.0,0.00021917,2]
[367151992,1750674637643,-483.58,0.00021917,2]
[367151993,1750674637652,-460.0,0.00021917,2]
[367151994,1750674637662,-1928.64,0.00021917,2]
[367151995,1750674637671,-636.33,0.00021917,2]
[367151996,1750674637681,-460.0,0.00021917,2]
[367151997,1750674637690,-460.0,0.00021917,2]
[367151998,1750674637699,-740.71,0.00021917,2]
[367151999,1750674637708,-899.74,0.00021917,2]
[367152000,1750674637717,-1690.04,0.00021917,2]
[367152001,1750674637727,-828.04,0.00021917,2]
[367152002,1750674637736,-460.0,0.00021917,2]
[367152003,1750674637745,-2201.57,0.00021917,2]
[367152004,1750674637754,-460.0,0.00021917,2]
[367152005,1750674637764,-4355.12,0.00021917,2]
[367152006,1750674637773,-673.69,0.00021917,2]
[367152007,1750674637782,-3045.03,0.00021917,2]
[367152008,1750674637791,-460.0,0.00021917,2]
[367152009,1750674637800,-1283.13,0.00021917,2]
[367152010,1750674637810,-6660.43,0.00021917,2]
[367152011,1750674637819,-460.0,0.00021917,2]
[367152012,1750674637828,-5123.76,0.00021917,2]
[367152013,1750674637837,-16090.52,0.00021917,2]
[367152014,1750674637847,-1152.83,0.00021917,2]
[367152015,1750674637856,-460.0,0.00021917,2]
[367152016,1750674637865,-1788.42,0.00021917,2]
[367152017,1750674637874,-460.0,0.00021917,2]
[367152018,1750674637883,-1128.02,0.00021917,2]
[367152019,1750674637893,-460.0,0.00021917,2]
[367152020,1750674637902,-460.0,0.00021917,2]
[367152021,1750674637911,-1269.76,0.00021917,2]
[367152022,1750674637921,-1957.55,0.00021917,2]
[367152023,1750674637930,-460.0,0.00021917,2]
[367152024,1750674637939,-857.22,0.00021917,2]
[367152025,1750674637948,-460.0,0.00021917,2]
[367152026,1750674637957,-2746.92,0.00021917,2]
[367152027,1750674637967,-460.0,0.00021917,2]
[367152028,1750674637976,-460.0,0.00021917,2]
[367152029,1750674637985,-460.0,0.00021917,2]
[367152030,1750674637994,-567.39,0.00021917,2]
[367152031,1750674638003,-834.21,0.00021917,2]
[367152032,1750674638013,-460.0,0.00021917,2]
[367152033,1750674638022,-787.78,0.00021917,2]
[367152034,1750674638031,-2192.65,0.00021917,2]
[367152035,1750674638041,-460.0,0.00021917,2]
[367152036,1750674638050,-460.0,0.00021917,2]
[367152037,1750674638060,-1008.5,0.00021917,2]
[367152038,1750674638070,-515.01,0.00021917,2]
[367152040,1750674638079,-460.0,0.00021917,2]
[367152041,1750674638089,-460.0,0.00021917,2]
[367152042,1750674638098,-1555.98,0.00021917,2]
[367152043,1750674638107,-1541.57,0.00021917,2]
[367152044,1750674638117,-3995.36,0.00021917,2]
[367152045,1750674638126,-497.25,0.00021917,2]
[367152046,1750674638136,-460.0,0.00021917,2]
[367152047,1750674638146,-460.0,0.00021917,2]
[367152048,1750674638156,-504.97,0.00021917,2]
[367152049,1750674638166,-737.51,0.00021917,2]
[367152050,1750674638175,-599.1,0.00021917,2]
[367152051,1750674638185,-460.0,0.00021917,2]
[367152052,1750674638194,-460.0,0.00021917,2]
[367152053,1750674638203,-460.0,0.00021917,2]
[367152054,1750674638212,-460.0,0.00021917,2]
[367152055,1750674638222,-621.49,0.00021917,2]
[367152056,1750674638232,-522.8,0.00021917,2]
[367152057,1750674638241,-460.0,0.00021917,2]
[367152058,1750674638250,-460.0,0.00021917,2]
[367152059,1750674638260,-500.0,0.00021917,2]
[367152060,1750674638269,-460.0,0.00021917,2]
[367152061,1750674638279,-460.0,0.00021917,2]
[367152062,1750674638288,-460.0,0.00021917,2]
[367152063,1750674638298,-5898.99,0.00021917,2]
[367152064,1750674638308,-572.67,0.00021917,2]
[367152065,1750674638318,-3946.8,0.00021917,2]
[367152066,1750674638329,-527.99,0.00021917,2]
[367152067,1750674638339,-460.0,0.00021917,2]
[367152068,1750674638350,-283.66359152,0.00021917,2]
[367152069,1750674638359,-568.71,0.00021917,2]
[367152070,1750674638368,-1850.4,0.00021917,2]
[367152071,1750674638378,-736.11,0.00021917,2]
[367152072,1750674638387,-240.604756,0.00021917,10]
[367152073,1750674638397,-444.34942606,0.00021917,2]
[367152074,1750674638407,-2210.45,0.00021917,2]
[367152075,1750674638416,-460.0,0.00021917,2]
[367152076,1750674638425,-460.0,0.00021917,2]
[367152077,1750674638435,-460.0,0.00021917,2]
[367152078,1750674638445,-1252.9,0.00021917,2]
[367152079,1750674638454,-287.77885334,0.00021917,2]
[367152080,1750674638465,-559.21,0.00021917,2]
[367152081,1750674638474,-460.0,0.00021917,2]
[367152082,1750674638484,-5652.65,0.00021917,2]
[367152083,1750674638494,-500.0,0.00021917,2]
[367152084,1750674638503,-460.0,0.00021917,2]
[367152085,1750674638514,-830.38,0.00021917,2]
[367152086,1750674638526,-1209.27,0.00021917,2]
[367152087,1750674638535,-976.75,0.00021917,2]
[367152088,1750674638545,-5449.39,0.00021917,2]
[367152089,1750674638554,-558.17,0.00021917,2]
[367152091,1750674638565,-541.16748903,0.00021917,2]
[367152092,1750674638574,-1624.93,0.00021917,2]
[367152093,1750674638583,-460.0,0.00021917,2]
[367152094,1750674638594,-460.0,0.00021917,2]
[367152095,1750674638604,-460.0,0.00021917,2]
[367152096,1750674638613,-5724.12,0.00021917,2]
[367152097,1750674638623,-560.65,0.00021917,2]
[367152098,1750674638633,-460.0,0.00021917,2]
[367152099,1750674638642,-460.0,0.00021917,2]
[367152100,1750674638651,-653.38,0.00021917,2]
[367152101,1750674638661,-2651.39,0.00021917,2]
[367152102,1750674638670,-1609.6,0.00021917,2]
[367152103,1750674638680,-460.0,0.00021917,2]
[367152104,1750674638689,-460.0,0.00021917,2]
[367152105,1750674638698,-460.0,0.00021917,2]
[367152106,1750674638707,-337.96584668,0.00021917,2]
[367152107,1750674638716,-460.0,0.00021917,2]
[367152108,1750674638726,-893.1,0.00021917,2]
[367152109,1750674638736,-460.0,0.00021917,2]
[367152110,1750674638746,-460.0,0.00021917,2]
[367152111,1750674638755,-1190.78,0.00021917,2]
[367152112,1750674638764,-639.51,0.00021917,2]
[367152113,1750674638773,-1003.86,0.00021917,2]
[367152115,1750674638782,-460.0,0.00021917,2]
[367152116,1750674638791,-852.12,0.00021917,2]
[367152117,1750674638801,-473.13153436,0.00021917,2]
[367152118,1750674638810,-1470.54,0.00021917,2]
[367152119,1750674638819,-460.0,0.00021917,2]
[367152120,1750674638829,-874.14,0.00021917,2]
[367152121,1750674638838,-1208.42,0.00021917,2]
[367152122,1750674638847,-901.15,0.00021917,2]
[367152123,1750674638857,-460.0,0.00021917,2]
[367152124,1750674638866,-153.0,0.00021918,2]
[367152125,1750674638876,-153.0,0.00021918,2]
[367152126,1750674638885,-153.0,0.00021918,2]
[367152127,1750674638895,-153.0,0.00021918,2]
[367152128,1750674638905,-153.0,0.00021918,2]
[367152129,1750674638914,-153.0,0.00021918,2]
[367152130,1750674638923,-153.0,0.00021918,2]
[367152131,1750674638932,-153.0,0.00021918,2]
[367152132,1750674638942,-153.0,0.00021918,2]
[367152133,1750674638951,-153.0,0.00021918,2]
[367152134,1750674638961,-153.0,0.00021918,2]
[367152135,1750674638970,-153.0,0.00021918,2]
[367152136,1750674638979,-400.0,0.00021918,7]
[367152137,1750674638989,-150.0,0.00021918,2]
[367152138,1750674638998,-177.3437282,0.00021918,2]
[367152139,1750674639007,-159.1393301,0.00021918,2]
[367152140,1750674639017,-1242.9848231,0.00021918,2]
[367152141,1750674639026,-159.1393301,0.00021918,2]
[367152142,1750674639036,-306.0,0.00021918,2]
[367152143,1750674639046,-177.3437282,0.00021918,2]
[367152144,1750674639056,-159.1393301,0.00021918,2]
[367152145,1750674639066,-177.3437282,0.00021918,2]
[367152146,1750674639075,-175.9461419,0.00021918,2]
[367152147,1750674639085,-500.0,0.00021973,2]
[367152148,1750674639094,-575.20353236,0.00021973,2]
[367152149,1750674639104,-500.0,0.00021973,2]
[367152150,1750674639113,-500.0,0.00021973,2]
[367152151,1750674639123,-500.0,0.00021973,2]
[367152152,1750674639133,-500.0,0.00021973,2]
[367152153,1750674639142,-500.0,0.00021973,2]
[367152154,1750674639152,-500.0,0.00021973,2]
[367152155,1750674639161,-9649.83861731,0.0002199,2]
[367152156,1750674639171,-585.70753407,0.00022,2]
[367152157,1750674639180,-7573.31708665,0.00022,2]
[367152158,1750674639190,-167.0,0.00022,2]
[367152159,1750674639200,-19031.38565903,0.00022,2]
[367152160,1750674639209,-40075.69248613,0.00022,2]
[367152161,1750674639218,-555.0,0.00022,2]
[367152162,1750674639228,-160.0,0.00022101,2]
[367152163,1750674639237,-160.0,0.00022101,2]
[367152164,1750674639246,-160.0,0.00022101,2]
[367152165,1750674639256,-160.0,0.0002211,2]
[367152166,1750674639265,-836.70095952,0.0002211,2]
[367152167,1750674639275,-425.08510397,0.0002211,2]
[367152168,1750674639284,-230.18214666,0.0002211,2]
[367152169,1750674639294,-160.0,0.0002211,2]
[367152170,1750674639303,-213.63163053,0.0002211,2]
[367152171,1750674639313,-160.0,0.0002211,2]
[367152172,1750674639323,-846.53928378,0.0002211,2]
[367152173,1750674639332,-5552.64116628,0.00022123,2]
[367152181,1750674640605,-500.0,0.00021906,2]
[367152182,1750674640615,-261.47228677,0.00021906,2]
[367152183,1750674640625,-500.0,0.00021906,2]
[367152184,1750674640634,-500.0,0.00021906,2]
[367152185,1750674640644,-500.0,0.00021906,2]
[367152186,1750674640653,-206.33130457,0.00021906,2]
[367152187,1750674640664,-97.40036711,0.00021907,10]
[367152188,1750674640741,159.5730545,0.000189,2]
[367152189,1750674641317,-1618.16963289,0.00021907,10]
[367152190,1750674641326,-1017.92207635,0.00021917,2]
[367152201,1750674643787,-1243.74792365,0.00021917,2]
[367152202,1750674643796,-2646.53,0.00021917,2]
[367152203,1750674643806,-460.0,0.00021917,2]
[367152204,1750674643816,-460.0,0.00021917,2]
[367152206,1750674643825,-460.0,0.00021917,2]
[367152208,1750674643835,-460.0,0.00021917,2]
[367152210,1750674643844,-597.03,0.00021917,2]
[367152212,1750674643852,-460.0,0.00021917,2]
[367152213,1750674643861,-831.68145456,0.00021917,2]
[367152214,1750674643873,-343.74854544,0.00021917,2]
[367152215,1750674643882,-460.0,0.00021917,2]
[367152216,1750674643892,-845.23,0.00021917,2]
[367152217,1750674643902,-864.17451472,0.00022123,2]
[367152218,1750674643914,-1705.85489733,0.00022123,2]
[367152219,1750674643925,-4431.02299341,0.00022123,2]
[367152220,1750674643935,-600.000001,0.0002215,2]
[367152221,1750674643944,-460.0,0.00022191,2]